bitfinex/quotes_BTCUSD_20250218
["timestamp","ask_amount","ask_price","bid_price","bid_amount"]
[1739853302088,5.2005165,96303.0,96302.0,0.00013205]
[1739853302286,5.22997489,96303.0,96302.0,0.00013205]
[1739853304232,5.22697489,96303.0,96302.0,0.00013205]
[1739853304598,5.22997489,96303.0,96302.0,0.00013205]
[1739853304825,5.22797489,96303.0,96302.0,0.00013205]
[1739853305259,5.22997489,96303.0,96302.0,0.00013205]
[1739853308049,5.09045189,96303.0,96302.0,0.00013205]
[1739853308257,1.43063313,96303.0,96302.0,0.00013205]
[1739853308595,0.52704222,96303.0,96302.0,0.07863205]
[1739853310765,0.45409222,96303.0,96302.0,0.07863205]
[1739853310972,0.4463236,96303.0,96302.0,0.07863205]
[1739853311201,0.3474586,96303.0,96302.0,0.07863205]
[1739853311403,0.3244586,96303.0,96302.0,0.07863205]
[1739853311610,0.3194586,96303.0,96302.0,0.07863205]
[1739853311817,0.3224586,96303.0,96302.0,0.07863205]
[1739853312035,0.3244586,96303.0,96302.0,0.07863205]
[1739853312181,0.3224586,96303.0,96302.0,0.07863205]
[1739853312590,0.3234586,96303.0,96302.0,0.07863205]
[1739853313396,0.3204586,96303.0,96302.0,0.07863205]
[1739853313776,0.32922241,96303.0,96302.0,0.07863205]
[1739853314821,0.32722241,96303.0,96302.0,0.07863205]
[1739853315255,0.32922241,96303.0,96302.0,0.07863205]
[1739853315444,0.32822241,96303.0,96302.0,0.07863205]
[1739853316568,0.32722241,96303.0,96302.0,0.07863205]
[1739853316989,0.32822241,96303.0,96302.0,0.07863205]
[1739853317628,0.16386241,96303.0,96302.0,0.07863205]
[1739853317801,0.16486241,96303.0,96302.0,0.07863205]
[1739853317987,2.36228541,96303.0,96302.0,0.07863205]
[1739853318187,2.34165641,96303.0,96302.0,0.07863205]
[1739853318675,2.34265641,96303.0,96302.0,0.07863205]
[1739853319116,2.32113841,96303.0,96302.0,0.07863205]
[1739853319871,2.32013841,96303.0,96302.0,0.07863205]
[1739853320087,2.32113841,96303.0,96302.0,0.07863205]
[1739853320685,0.54548841,96303.0,96302.0,0.07863205]
[1739853320891,0.54648841,96303.0,96302.0,0.07863205]
[1739853321135,0.54548841,96303.0,96302.0,0.07863205]
[1739853321369,0.16486241,96303.0,96302.0,0.07863205]
[1739853321990,0.28457941,96303.0,96302.0,0.07863205]
[1739853323010,0.16386241,96303.0,96302.0,0.07863205]
[1739853323236,0.16486241,96303.0,96302.0,0.07863205]
[1739853324435,0.28137941,96303.0,96302.0,0.07863205]
[1739853324641,0.16486241,96303.0,96302.0,0.07863205]
[1739853324991,0.00910441,96303.0,96302.0,0.24204594]
[1739853325203,0.00810441,96303.0,96302.0,0.24204594]
[1739853326509,0.00910441,96303.0,96302.0,0.24204594]
[1739853326950,0.00810441,96303.0,96302.0,0.24204594]
[1739853329576,0.0003406,96303.0,96302.0,0.24204594]
[1739853330479,0.0003406,96303.0,96302.0,0.39780594]
[1739853338606,0.0003406,96303.0,96302.0,0.24204594]
[1739853341300,0.00810415,96303.0,96302.0,0.24204594]
[1739853341515,0.00810415,96303.0,96302.0,0.2295357]
[1739853349862,0.00810415,96303.0,96302.0,0.5580357]
[1739853350275,0.0003406,96303.0,96302.0,0.5580357]
[1739853350493,0.0003406,96303.0,96302.0,0.5600357]
[1739853350699,0.0003406,96303.0,96302.0,0.5640357]
[1739853351615,0.0003406,96303.0,96302.0,0.58421028]
[1739853352536,0.0003406,96303.0,96302.0,0.5640357]
[1739853352953,0.0003406,96303.0,96302.0,0.58350171]
[1739853353174,0.0003406,96303.0,96302.0,0.73350171]
[1739853353624,0.0003406,96303.0,96302.0,0.7537765]
[1739853358089,0.0003406,96303.0,96302.0,0.7497765]
[1739853358469,0.0003406,96303.0,96302.0,0.7537765]
[1739853358673,0.0003406,96303.0,96302.0,0.7497765]
[1739853358878,0.0003406,96303.0,96302.0,1.2885765]
[1739853359241,0.0003406,96303.0,96302.0,1.2865765]
[1739853359448,0.0003406,96303.0,96302.0,1.2905765]
[1739853360057,0.0003406,96303.0,96302.0,1.2865765]
[1739853360301,0.0013406,96303.0,96302.0,1.2935765]
[1739853360507,0.0013406,96303.0,96302.0,1.2995765]
[1739853360713,0.0013406,96303.0,96302.0,1.27930171]
[1739853363930,0.0013406,96303.0,96302.0,1.30230171]
[1739853369496,0.0013406,96303.0,96302.0,1.45806171]
[1739853370626,0.0013406,96303.0,96302.0,1.4385957]
[1739853372152,0.0013406,96303.0,96302.0,1.4155957]
[1739853376777,0.0013406,96303.0,96302.0,0.8767957]
[1739853379718,0.0013406,96303.0,96302.0,0.8997957]
[1739853380653,0.0013406,96303.0,96302.0,1.4385957]
[1739853380862,0.0013406,96303.0,96302.0,1.4585957]
[1739853381063,0.155695,96343.0,96326.0,0.0759]
[1739853381289,0.08317348,96342.0,96327.0,0.44437164]
[1739853381484,0.2076,96339.0,96327.0,0.44333365]
[1739853381693,0.155707,96335.0,96327.0,0.44333365]
[1739853381896,0.07801529,96340.0,96327.0,0.59905265]
[1739853382096,0.155707,96335.0,96328.0,0.09017365]
[1739853382330,0.155704,96337.0,96329.0,0.10250365]
[1739853382851,0.207602,96338.0,96329.0,0.10250365]
[1739853382852,0.155707,96335.0,96329.0,0.10250365]
[1739853383058,0.155704,96337.0,96329.0,0.10250365]
[1739853383256,0.155704,96337.0,96330.0,0.01233]
[1739853383457,0.004,96335.0,96331.0,0.10250365]
[1739853383886,0.155704,96337.0,96331.0,0.10250365]
[1739853384338,0.155707,96335.0,96331.0,0.10250365]
[1739853384679,0.155708,96334.0,96332.0,0.07223536]
[1739853384859,0.155708,96334.0,96333.0,0.10250365]
[1739853385040,0.005,96337.0,96333.0,0.10250365]
[1739853385239,0.009,96337.0,96333.0,0.10250365]
[1739853385447,0.164704,96337.0,96333.0,0.10250365]
[1739853385652,0.155705,96336.0,96333.0,0.12044194]
[1739853385828,0.003,96334.0,96333.0,0.12044194]
[1739853386035,0.155707,96335.0,96333.0,0.12044194]
[1739853387683,0.155707,96335.0,96333.0,0.10250365]
[1739853387684,0.159707,96335.0,96333.0,0.10250365]
[1739853387886,0.155717,96328.0,96327.0,0.3285]
[1739853388097,0.155717,96328.0,96327.0,0.43100365]
[1739853388293,0.155717,96328.0,96327.0,0.47410402]
[1739853389317,0.158717,96328.0,96327.0,0.47410402]
[1739853391331,0.158717,96328.0,96327.0,0.43100365]
[1739853391693,0.158717,96328.0,96327.0,0.10250365]
[1739853397739,0.158717,96328.0,96327.0,0.10284405]
[1739853398134,0.08317348,96331.0,96327.0,0.10284405]
[1739853398353,0.946762,96330.0,96328.0,0.10250365]
[1739853398785,1.154382,96330.0,96328.0,0.10250365]
[1739853398973,0.20762,96330.0,96328.0,0.10250365]
[1739853399176,0.20762,96330.0,96328.0,0.11278806]
[1739853399382,0.155716,96329.0,96328.0,0.11278806]
[1739853399590,0.155717,96328.0,96327.0,0.0003404]
[1739853399923,0.155717,96328.0,96327.0,0.10284405]
[1739853401245,1.596399,96328.0,96327.0,0.10284405]
[1739853401548,1.168223,96328.0,96327.0,0.10284405]
[1739853401776,1.119212,96328.0,96327.0,0.10284405]
[1739853403677,0.820227,96328.0,96327.0,0.10284405]
[1739853404594,0.360869,96328.0,96327.0,0.10284405]
[1739853405530,0.361869,96328.0,96327.0,0.10284405]
[1739853410414,0.156717,96328.0,96327.0,0.10284405]
[1739853410644,0.001,96328.0,96327.0,0.12141845]
[1739853411052,0.001,96328.0,96327.0,0.35853745]
[1739853411293,0.0013404,96328.0,96327.0,0.20281845]
[1739853411536,0.0013404,96328.0,96327.0,0.35603745]
[1739853411716,0.0003404,96328.0,96327.0,0.35603745]
[1739853413354,0.0003404,96328.0,96327.0,0.20031845]
[1739853418380,0.0003404,96328.0,96327.0,0.18174405]
[1739853420747,0.0003404,96328.0,96327.0,0.33746305]
[1739853421187,0.0003404,96328.0,96327.0,0.18174405]
[1739853422548,0.0003404,96328.0,96327.0,0.18191425]
[1739853423180,0.1560574,96328.0,96327.0,0.18191425]
[1739853423551,0.0003404,96328.0,96327.0,0.18191425]
[1739853425980,0.0003404,96328.0,96327.0,0.25862898]
[1739853427398,0.00260749,96328.0,96327.0,0.25862898]
[1739853427603,0.00491663,96328.0,96327.0,0.25862898]
[1739853428046,0.0003404,96328.0,96327.0,0.41434798]
[1739853428399,0.0003404,96328.0,96327.0,0.25862898]
[1739853431933,0.0003404,96328.0,96327.0,0.41434798]
[1739853433525,0.0003404,96328.0,96327.0,0.46154798]
[1739853433727,0.0003404,96328.0,96327.0,0.94004798]
[1739853434007,0.0003404,96328.0,96327.0,0.95709088]
[1739853434183,0.0003404,96328.0,96327.0,0.98009088]
[1739853434408,0.0003406,96374.0,96331.0,0.049]
[1739853434586,0.07801529,96350.0,96340.0,0.286198]
[1739853434828,0.07801529,96350.0,96342.0,0.0786]
[1739853435034,0.00516307,96349.0,96348.0,0.155685]
[1739853435209,0.07801529,96352.0,96348.0,0.25818865]
[1739853435435,0.36371729,96360.0,96349.0,0.17821838]
[1739853435569,0.078147,96360.0,96350.0,0.0786]
[1739853435771,0.09517812,96360.0,96351.0,0.31007765]
[1739853435958,0.09517812,96360.0,96352.0,0.02578892]
[1739853436158,0.09517812,96360.0,96355.0,0.155674]
[1739853436353,0.01716283,96360.0,96356.0,0.10250365]
[1739853436563,0.00013171,96360.0,96356.0,0.10250365]
[1739853436785,0.00413171,96360.0,96356.0,0.10250365]
[1739853436988,0.00413171,96360.0,96357.0,0.05701376]
[1739853437198,0.00413171,96360.0,96358.0,0.10250365]
[1739853437606,0.00315551,96359.0,96358.0,0.10250365]
[1739853439341,0.00415551,96359.0,96358.0,0.10250365]
[1739853440476,0.00515551,96359.0,96358.0,0.10250365]
[1739853440647,0.00515551,96359.0,96358.0,0.12220462]
[1739853441257,0.00719396,96359.0,96358.0,0.12220462]
[1739853442356,0.002,96359.0,96358.0,0.12220462]
[1739853442560,0.2062608,96375.0,96358.0,0.12220462]
[1739853442767,0.07801529,96370.0,96358.0,0.12220462]
[1739853442979,0.08121301,96370.0,96359.0,0.03795696]
[1739853443182,0.09767589,96370.0,96362.0,0.155662]
[1739853443385,0.25332589,96370.0,96363.0,0.10250365]
[1739853444371,0.25732589,96370.0,96363.0,0.10250365]
[1739853444687,0.25332589,96370.0,96364.0,0.04484572]
[1739853444884,0.0196606,96370.0,96365.0,0.10250365]
[1739853445087,0.155652,96369.0,96365.0,0.10250365]
[1739853445295,0.00319339,96368.0,96365.0,0.10250365]
[1739853445489,0.02546288,96370.0,96365.0,0.10250365]
[1739853445697,0.00319556,96369.0,96366.0,0.01970097]
[1739853445902,0.00319556,96369.0,96367.0,0.10250365]
[1739853446418,0.00819556,96369.0,96367.0,0.10250365]
[1739853446922,0.00319556,96369.0,96367.0,0.10250365]
[1739853447119,0.00819556,96369.0,96367.0,0.10250365]
[1739853447328,0.00819556,96369.0,96367.0,0.15924551]
[1739853447484,0.01119556,96369.0,96367.0,0.15924551]
[1739853448275,0.00619556,96369.0,96367.0,0.15924551]
[1739853448589,0.01019556,96369.0,96367.0,0.15924551]
[1739853450197,0.16584656,96369.0,96367.0,0.10250365]
[1739853453001,0.01019556,96369.0,96367.0,0.10250365]
[1739853454867,0.01019556,96369.0,96368.0,0.155653]
[1739853455071,0.01019556,96369.0,96368.0,0.33925665]
[1739853455717,0.00619556,96369.0,96368.0,0.33925665]
[1739853455998,0.00619556,96369.0,96368.0,0.41769122]
[1739853456198,0.0052532,96369.0,96368.0,0.41769122]
[1739853456423,0.0052532,96369.0,96368.0,0.42069122]
[1739853457837,0.0052532,96369.0,96368.0,0.47019122]
[1739853459150,0.0052532,96369.0,96368.0,0.31453822]
[1739853459352,0.0052532,96369.0,96368.0,0.47019122]
[1739853460254,0.0052532,96369.0,96368.0,0.31453822]
[1739853460454,0.0052532,96369.0,96368.0,0.47019122]
[1739853465921,0.0052532,96369.0,96368.0,0.79869122]
[1739853466452,0.0001702,96370.0,96368.0,0.79869122]
[1739853466667,0.0001702,96370.0,96369.0,0.21017273]
[1739853468307,0.0001702,96370.0,96369.0,0.21317273]
[1739853468499,0.0001702,96370.0,96369.0,0.21617273]
[1739853469888,0.00333868,96370.0,96369.0,0.21617273]
[1739853470269,0.09311037,96373.0,96372.0,0.237546]
[1739853470470,0.0003406,96374.0,96372.0,0.41548422]
[1739853470714,0.0003406,96374.0,96373.0,0.10250365]
[1739853472211,0.0003406,96374.0,96373.0,0.10450365]
[1739853473533,0.0003406,96374.0,96373.0,0.10650365]
[1739853482362,0.0003406,96374.0,96373.0,0.43604117]
[1739853482590,0.0001703,96400.0,96374.0,0.22339017]
[1739853482785,0.0001703,96400.0,96391.0,0.38921965]
[1739853482928,0.00047223,96392.0,96391.0,0.41628873]
[1739853483944,0.00047223,96392.0,96391.0,0.42128873]
[1739853484350,0.00547223,96392.0,96391.0,0.41628873]
[1739853484554,0.00547223,96392.0,96391.0,0.42128873]
[1739853484757,0.00047223,96392.0,96391.0,0.42128873]
[1739853484964,0.00047223,96392.0,96391.0,0.26567273]
[1739853485187,0.00047223,96392.0,96391.0,0.27067273]
[1739853486238,0.00521485,96392.0,96391.0,0.27067273]
[1739853486796,0.00521485,96392.0,96391.0,0.26567273]
[1739853487317,0.00047223,96392.0,96391.0,0.26467273]
[1739853487784,0.00047223,96392.0,96391.0,0.26867273]
[1739853487958,0.00047223,96392.0,96391.0,0.26467273]
[1739853488304,0.00047223,96392.0,96391.0,0.26867273]
[1739853488505,0.00047223,96392.0,96391.0,0.26467273]
[1739853488756,0.00047223,96392.0,96391.0,0.26067273]
[1739853488963,0.00047223,96392.0,96391.0,0.26567273]
[1739853489794,0.00047223,96392.0,96391.0,0.26967273]
[1739853490248,0.00047223,96392.0,96391.0,0.26067273]
[1739853490447,0.00047223,96392.0,96391.0,0.26567273]
[1739853490645,0.00047223,96392.0,96391.0,0.27067273]
[1739853491094,0.00047223,96392.0,96391.0,0.26567273]
[1739853491295,0.00520714,96392.0,96391.0,0.26567273]
[1739853491497,0.00047223,96392.0,96391.0,0.27067273]
[1739853491692,0.00520714,96392.0,96391.0,0.27067273]
[1739853491918,0.00047223,96392.0,96391.0,0.27067273]
[1739853492620,0.00047223,96392.0,96391.0,0.59917273]
[1739853492820,0.00047223,96392.0,96391.0,0.59417273]
[1739853492821,0.00522331,96392.0,96391.0,0.59417273]
[1739853493058,0.00047223,96392.0,96391.0,0.59417273]
[1739853493263,0.00047223,96392.0,96391.0,0.59817273]
[1739853493784,0.00047223,96392.0,96391.0,0.58917273]
[1739853493993,0.00047223,96392.0,96391.0,0.59317273]
[1739853494193,0.00047223,96392.0,96391.0,0.59717273]
[1739853494393,0.00522331,96392.0,96391.0,0.59717273]
[1739853494672,0.00047223,96392.0,96391.0,0.59317273]
[1739853494835,0.00047223,96392.0,96391.0,0.59717273]
[1739853496551,0.00522331,96392.0,96391.0,0.59317273]
[1739853496713,0.00293946,96392.0,96391.0,0.59317273]
[1739853497280,0.00293946,96392.0,96391.0,0.59817273]
[1739853497470,0.00293946,96392.0,96391.0,0.59417273]
[1739853498108,0.00293946,96392.0,96391.0,0.59917273]
[1739853498320,0.00522331,96392.0,96391.0,0.59917273]
[1739853498573,0.00293946,96392.0,96391.0,0.59917273]
[1739853503388,0.00293946,96392.0,96391.0,0.75478873]
[1739853504065,0.00293946,96392.0,96391.0,0.74978873]
[1739853504893,0.00293946,96392.0,96391.0,0.75078873]
[1739853505312,0.00293946,96392.0,96391.0,0.74478873]
[1739853506742,0.00293946,96392.0,96391.0,0.74878873]
[1739853507460,0.00293946,96392.0,96391.0,0.74978873]
[1739853507686,0.00393946,96392.0,96391.0,0.75578873]
[1739853507789,0.00393946,96392.0,96391.0,0.75078873]
[1739853507998,0.00393946,96392.0,96391.0,0.75678873]
[1739853510882,0.00293946,96392.0,96391.0,0.90078873]
[1739853511132,0.00393946,96392.0,96391.0,0.90778873]
[1739853511381,0.00393946,96392.0,96391.0,0.90178873]
[1739853511757,0.00393946,96392.0,96391.0,0.90778873]
[1739853529731,0.00393946,96392.0,96391.0,0.88071965]
[1739853534431,0.00393946,96392.0,96391.0,0.88835172]
[1739853537135,0.00393946,96392.0,96391.0,0.88071965]
[1739853542120,0.00365502,96392.0,96391.0,0.88071965]
[1739853542328,0.00265502,96392.0,96391.0,0.87371965]
[1739853542527,0.00265502,96392.0,96391.0,0.87471965]
[1739853542898,0.00265502,96392.0,96391.0,0.88071965]
[1739853543109,0.00265502,96392.0,96391.0,0.86771965]
[1739853543337,0.00265502,96392.0,96391.0,0.87471965]
[1739853543957,0.00265502,96392.0,96391.0,0.88171965]
[1739853554028,0.00265502,96392.0,96391.0,0.88206025]
[1739853561854,0.023,96458.0,96392.0,0.357484]
[1739853562060,0.155592,96406.0,96399.0,0.155602]
[1739853562268,0.155592,96406.0,96400.0,0.43100365]
[1739853562474,0.155589,96408.0,96400.0,0.43100365]
[1739853562650,0.155589,96408.0,96401.0,0.07940827]
[1739853562797,0.155589,96408.0,96402.0,0.10250365]
[1739853562997,0.207451,96408.0,96402.0,0.10250365]
[1739853563199,0.155593,96406.0,96402.0,0.10250365]
[1739853563449,0.15559,96407.0,96402.0,0.10250365]
[1739853563623,0.15559,96407.0,96403.0,0.02105098]
[1739853563795,0.15559,96407.0,96404.0,0.10250365]
[1739853563995,0.207451,96408.0,96404.0,0.10250365]
[1739853564246,0.155592,96406.0,96404.0,0.10250365]
[1739853565337,0.155593,96405.0,96404.0,0.10250365]
[1739853565544,0.155593,96405.0,96404.0,0.16386971]
[1739853565722,0.155593,96405.0,96404.0,0.16686971]
[1739853565938,0.155593,96405.0,96404.0,0.17086971]
[1739853566175,0.155593,96405.0,96404.0,0.16686971]
[1739853566360,0.0001703,96406.0,96404.0,0.16386971]
[1739853566530,0.1557613,96406.0,96405.0,0.01804221]
[1739853566729,0.1557613,96406.0,96405.0,0.12054586]
[1739853568422,0.1557613,96406.0,96405.0,0.12354586]
[1739853569910,0.1557613,96406.0,96405.0,0.12754586]
[1739853574305,0.19795235,96408.0,96405.0,0.12754586]
[1739853574522,0.19795235,96408.0,96406.0,0.12355463]
[1739853575781,0.15559,96407.0,96406.0,0.12355463]
[1739853575982,0.15559,96407.0,96406.0,0.12655463]
[1739853576303,0.15559,96407.0,96406.0,0.12955463]
[1739853576914,0.15559,96407.0,96406.0,0.12655463]
[1739853577330,0.15559,96407.0,96406.0,0.12355463]
[1739853577762,0.15559,96407.0,96406.0,0.12655463]
[1739853578336,0.15559,96407.0,96406.0,0.12955463]
[1739853589752,0.15559,96407.0,96406.0,0.12989503]
[1739853591810,0.15559,96407.0,96406.0,0.10884405]
[1739853594423,2.408016,96407.0,96406.0,0.0063404]
[1739853594636,2.322845,96407.0,96406.0,0.0063404]
[1739853595233,2.304191,96407.0,96406.0,0.0033404]
[1739853595404,1.758461,96407.0,96406.0,0.0033404]
[1739853595615,1.005376,96407.0,96406.0,0.0003404]
[1739853598276,1.02162744,96407.0,96406.0,0.0003404]
[1739853601772,0.69246444,96407.0,96406.0,0.0003404]
[1739853601994,0.17184144,96407.0,96406.0,0.0003404]
[1739853602201,0.17184144,96407.0,96406.0,0.10284405]
[1739853602403,0.17184144,96407.0,96406.0,0.1131625]
[1739853603037,0.17184144,96407.0,96406.0,0.1141625]
[1739853603241,0.17184144,96407.0,96406.0,0.1131625]
[1739853603662,0.17184144,96407.0,96406.0,0.1141625]
[1739853603995,0.17184144,96407.0,96406.0,0.10384405]
[1739853605002,2.97877944,96407.0,96406.0,0.10384405]
[1739853605177,2.97877944,96407.0,96406.0,0.10484405]
[1739853605554,4.08672244,96407.0,96406.0,0.0023404]
[1739853605761,4.11618121,96407.0,96406.0,0.0023404]
[1739853605962,4.15009027,96407.0,96406.0,0.0023404]
[1739853606175,4.15009027,96407.0,96406.0,0.0013404]
[1739853606395,4.15009027,96407.0,96406.0,0.0003404]
[1739853608337,3.98900627,96407.0,96406.0,0.0003404]
[1739853608508,2.32166244,96407.0,96406.0,0.0003404]
[1739853608689,2.29732544,96407.0,96406.0,0.0003404]
[1739853610728,0.75752944,96407.0,96406.0,0.0003404]
[1739853610931,0.70155244,96407.0,96406.0,0.0003404]
[1739853612177,0.17184144,96407.0,96406.0,0.0003404]
[1739853612956,0.1557592,96408.0,96406.0,0.18054405]
[1739853613161,0.1557592,96408.0,96407.0,0.1254721]
[1739853614624,0.1557592,96408.0,96407.0,0.1264721]
[1739853615061,0.1557592,96408.0,96407.0,0.10350365]
[1739853619552,0.1557592,96408.0,96407.0,0.10250365]
[1739853619915,0.1557592,96408.0,96407.0,0.10350365]
[1739853620310,0.1557592,96408.0,96407.0,0.10550365]
[1739853622547,0.1557592,96408.0,96407.0,0.10450365]
[1739853623166,0.0001702,96408.0,96407.0,0.1276721]
[1739853623724,0.0001702,96408.0,96407.0,0.1296721]
[1739853624381,0.0001702,96408.0,96407.0,0.1276721]
[1739853624591,0.0001702,96408.0,96407.0,0.1296721]
[1739853625483,0.0001702,96408.0,96407.0,0.1300125]
[1739853625683,0.0001702,96408.0,96407.0,0.1280125]
[1739853625891,0.0001702,96408.0,96407.0,0.1300125]
[1739853627119,0.0001702,96408.0,96407.0,0.2856025]
[1739853628042,0.0001702,96408.0,96407.0,0.1300125]
[1739853628444,0.0001702,96408.0,96407.0,0.2856025]
[1739853628853,0.0001702,96408.0,96407.0,0.1300125]
[1739853631336,0.0001702,96408.0,96407.0,0.1280125]
[1739853632325,0.0001702,96408.0,96407.0,0.1260125]
[1739853632527,0.0001702,96408.0,96407.0,0.1290125]
[1739853632733,0.0001702,96408.0,96407.0,0.1320125]
[1739853635731,0.207432,96417.0,96407.0,0.1320125]
[1739853635945,0.149329,96416.0,96408.0,0.04178563]
[1739853636148,0.155574,96417.0,96409.0,0.10250365]
[1739853636353,0.361763,96416.0,96409.0,0.10250365]
[1739853636560,0.15558,96413.0,96409.0,0.10250365]
[1739853636737,0.207434,96416.0,96409.0,0.10250365]
[1739853636912,0.142329,96415.0,96410.0,0.03550517]
[1739853637111,0.142329,96415.0,96411.0,0.10250365]
[1739853637581,0.155579,96414.0,96411.0,0.10250365]
[1739853638349,0.207434,96416.0,96411.0,0.10250365]
[1739853638350,0.15558,96413.0,96411.0,0.10250365]
[1739853638550,0.15558,96413.0,96412.0,0.02316845]
[1739853638754,0.15558,96413.0,96412.0,0.1256721]
[1739853639175,0.15558,96413.0,96412.0,0.10250365]
[1739853640017,0.15558,96413.0,96412.0,0.10450365]
[1739853640840,0.15558,96413.0,96412.0,0.10550365]
[1739853641450,0.01362496,96415.0,96412.0,0.10550365]
[1739853641647,0.868953,96414.0,96413.0,0.10250365]
[1739853641860,0.155579,96414.0,96413.0,0.1364511]
[1739853642077,0.713374,96414.0,96413.0,0.1364511]
[1739853642236,0.207432,96417.0,96413.0,0.1364511]
[1739853642237,0.868951,96415.0,96413.0,0.1364511]
[1739853642436,0.868953,96414.0,96413.0,0.1364511]
[1739853643572,0.868953,96414.0,96413.0,0.1374511]
[1739853643974,0.868953,96414.0,96413.0,0.1384511]
[1739853645162,0.868953,96414.0,96413.0,0.1374511]
[1739853645369,0.713374,96414.0,96413.0,0.1374511]
[1739853645574,0.155577,96415.0,96413.0,0.1384511]
[1739853645806,0.868953,96414.0,96413.0,0.1384511]
[1739853646015,0.143378,96414.0,96413.0,0.1384511]
[1739853646427,0.155579,96414.0,96413.0,0.1374511]
[1739853646776,0.155579,96414.0,96413.0,0.1384511]
[1739853647785,0.01374496,96417.0,96413.0,0.1384511]
[1739853647987,0.155577,96415.0,96414.0,0.01387915]
[1739853648255,0.155577,96415.0,96414.0,0.1163828]
[1739853649413,0.155577,96415.0,96414.0,0.1173828]
[1739853649621,0.155577,96415.0,96414.0,0.1183828]
[1739853658453,0.155577,96415.0,96414.0,0.10450365]
[1739853663370,1.092137,96415.0,96414.0,0.10450365]
[1739853663585,2.710555,96415.0,96414.0,0.10450365]
[1739853672720,2.710555,96415.0,96414.0,0.002]
[1739853672869,0.155577,96415.0,96414.0,0.002]
[1739853673065,4.044809,96415.0,96414.0,0.002]
[1739853673541,4.044809,96415.0,96414.0,0.0013406]
[1739853673826,1.489831,96415.0,96414.0,0.0013406]
[1739853674032,0.155577,96415.0,96414.0,0.0003406]
[1739853674219,4.522707,96415.0,96414.0,0.0003406]
[1739853674639,4.422055,96415.0,96414.0,0.0003406]
[1739853676445,4.372161,96415.0,96414.0,0.0003406]
[1739853681004,4.40607006,96415.0,96414.0,0.0003406]
[1739853682146,4.43552883,96415.0,96414.0,0.0003406]
[1739853684041,4.58552883,96415.0,96414.0,0.0003406]
[1739853684444,2.03055083,96415.0,96414.0,0.0003406]
[1739853684693,0.36894483,96415.0,96414.0,0.0003406]
[1739853684847,6.05009583,96415.0,96414.0,0.0003406]
[1739853685849,5.94634883,96415.0,96414.0,0.0003406]
[1739853686055,5.84798383,96415.0,96414.0,0.0003406]
[1739853686662,5.864235,96415.0,96414.0,0.0003406]
[1739853687097,5.099403,96415.0,96414.0,0.0003406]
[1739853688920,4.917311,96415.0,96414.0,0.0003406]
[1739853689682,4.698463,96415.0,96414.0,0.0003406]
[1739853690101,3.96209994,96415.0,96414.0,0.0003406]
[1739853692920,3.77541063,96415.0,96414.0,0.0003406]
[1739853693474,3.93098763,96415.0,96414.0,0.0003406]
[1739853694891,1.37600963,96415.0,96414.0,0.0003406]
[1739853695095,3.93098763,96415.0,96414.0,0.0003406]
[1739853695293,4.54714563,96415.0,96414.0,0.0003406]
[1739853695691,4.51714563,96415.0,96414.0,0.0003406]
[1739853696876,4.55105469,96415.0,96414.0,0.0003406]
[1739853697853,4.55122499,96415.0,96414.0,0.0003406]
[1739853700079,4.55122499,96415.0,96407.0,0.0003404]
[1739853700080,0.155588,96408.0,96407.0,0.0003404]
[1739853700479,6.58827806,96408.0,96407.0,0.0003404]
[1739853700625,6.21883906,96408.0,96407.0,0.0003404]
[1739853701176,6.17882993,96408.0,96407.0,0.0003404]
[1739853702699,5.27081693,96408.0,96407.0,0.0003404]
[1739853702902,4.98757293,96408.0,96407.0,0.0003404]
[1739853704345,4.79469793,96408.0,96407.0,0.0003404]
[1739853704525,4.72399393,96408.0,96407.0,0.0003404]
[1739853705684,2.67660193,96408.0,96407.0,0.0003404]
[1739853705894,0.21650093,96408.0,96407.0,0.0003404]
[1739853706093,5.19479093,96408.0,96407.0,0.0003404]
[1739853706293,5.33934493,96408.0,96407.0,0.0003404]
[1739853706543,5.11472093,96408.0,96407.0,0.0003404]
[1739853707141,5.03618493,96408.0,96407.0,0.0003404]
[1739853707344,5.05243742,96408.0,96407.0,0.0003404]
[1739853711003,4.32784942,96408.0,96407.0,0.0003404]
[1739853711204,4.33263948,96408.0,96407.0,0.0003404]
[1739853714460,4.29873042,96408.0,96407.0,0.0003404]
[1739853717071,4.27172655,96408.0,96407.0,0.0003404]
[1739853718849,4.40813926,96408.0,96407.0,0.0003404]
[1739853719273,4.30563561,96408.0,96407.0,0.0003404]
[1739853723265,0.355591,96406.0,96405.0,2e-07]
[1739853723473,0.155614,96392.0,96391.0,0.0003406]
[1739853723687,0.18952306,96392.0,96391.0,0.0003406]
[1739853723891,6.32038127,96392.0,96391.0,0.0003406]
[1739853724140,6.39060227,96392.0,96391.0,0.0003406]
[1739853724812,6.66206261,96392.0,96391.0,0.0003406]
[1739853725440,6.62815355,96392.0,96391.0,0.0003406]
[1739853725623,6.63015355,96392.0,96391.0,0.0003406]
[1739853726273,6.63115355,96392.0,96391.0,0.0003406]
[1739853727285,6.64740866,96392.0,96391.0,0.0003406]
[1739853728189,5.41830719,96392.0,96391.0,0.0003406]
[1739853728342,5.33328919,96392.0,96391.0,0.0003406]
[1739853728937,5.35382981,96392.0,96391.0,0.0003406]
[1739853729141,5.32682594,96392.0,96391.0,0.0003406]
[1739853729349,2.50043894,96392.0,96391.0,0.0003406]
[1739853729551,4.91583394,96392.0,96391.0,0.0003406]
[1739853729750,5.42755794,96392.0,96391.0,0.0003406]
[1739853729979,4.33937294,96392.0,96391.0,0.0003406]
[1739853730865,4.31883232,96392.0,96391.0,0.0003406]
[1739853734048,4.30257721,96392.0,96391.0,0.0003406]
[1739853737110,4.31883173,96392.0,96391.0,0.0003406]
[1739853739631,4.42133538,96392.0,96391.0,0.0003406]
[1739853739851,3.19243573,96392.0,96391.0,0.0003406]
[1739853740086,1.45984473,96392.0,96391.0,0.0495406]
[1739853742968,1.44359021,96392.0,96391.0,0.0495406]
[1739853743433,1.44159021,96392.0,96391.0,0.0495406]
[1739853743834,1.44259021,96392.0,96391.0,0.0495406]
[1739853744548,1.44159021,96392.0,96391.0,0.0495406]
[1739853744767,1.44259021,96392.0,96391.0,0.0495406]
[1739853747245,1.45884381,96392.0,96391.0,0.0495406]
[1739853749054,1.45784381,96392.0,96391.0,0.0495406]
[1739853749524,1.45884381,96392.0,96391.0,0.0495406]
[1739853749742,1.44884381,96392.0,96391.0,0.0495406]
[1739853750508,0.62645681,96392.0,96391.0,0.0495406]
[1739853750715,2.63999281,96392.0,96391.0,0.0495406]
[1739853750921,2.67718881,96392.0,96391.0,0.0495406]
[1739853753459,0.37549981,96392.0,96391.0,0.1276406]
[1739853753902,0.16864481,96392.0,96391.0,0.14040466]
[1739853754121,0.15239121,96392.0,96391.0,0.1276406]
[1739853754757,0.15039121,96392.0,96391.0,0.1276406]
[1739853754963,0.15039121,96392.0,96391.0,0.1286406]
[1739853755707,0.15039121,96392.0,96391.0,0.1296406]
[1739853755912,0.15039121,96392.0,96391.0,0.1316406]